bitfinex-derivatives/quotes_SOLF0:USTF0_20260211
["timestamp","ask_amount","ask_price","bid_price","bid_amount"]
[1770846246131,9.65349921,80.285,80.235,33.82302807]
[1770846246335,9.65349921,80.284,80.235,33.82302807]
[1770846246535,32.21497366,80.287,80.235,33.82302807]
[1770846246536,9.65349921,80.283,80.235,33.82302807]
[1770846246850,9.65349921,80.282,80.242,11.2243]
[1770846247141,32.21497366,80.287,80.242,11.2243]
[1770846247142,9.65349921,80.281,80.242,11.2243]
[1770846247337,9.65349921,80.28,80.235,33.82302807]
[1770846247539,9.65349921,80.279,80.235,33.82302807]
[1770846247743,9.65349921,80.278,80.235,33.82302807]
[1770846247942,9.65349921,80.277,80.235,33.82302807]
[1770846248142,9.65349921,80.276,80.235,33.82302807]
[1770846248342,9.65349921,80.275,80.235,33.82302807]
[1770846248536,9.65349921,80.274,80.235,33.82302807]
[1770846248735,9.65349921,80.273,80.239,11.2248]
[1770846248940,9.65349921,80.272,80.239,11.2248]
[1770846249134,9.65349921,80.271,80.235,33.82302807]
[1770846249333,9.65349921,80.27,80.235,33.82302807]
[1770846249538,9.65349921,80.269,80.235,33.82302807]
[1770846249844,9.65349921,80.268,80.235,33.82302807]
[1770846250045,9.65349921,80.267,80.235,33.82302807]
[1770846250231,9.65349921,80.266,80.235,33.82302807]
[1770846250432,32.21497366,80.288,80.235,33.82302807]
[1770846250637,9.6670009,80.287,80.235,33.82302807]
[1770846250942,9.6670009,80.286,80.246,33.82302807]
[1770846251242,9.6670009,80.285,80.246,33.82302807]
[1770846251543,9.6670009,80.284,80.246,33.82302807]
[1770846251747,9.6670009,80.284,80.2,10.64563812]
[1770846251748,9e-07,80.283,80.262,11.2216]
[1770846252041,32.21497366,80.314,80.263,33.82302807]
[1770846252744,43.42997366,80.31,80.264,11.2213]
[1770846252946,32.21497366,80.309,80.264,11.2213]
[1770846254849,11.2155,80.306,80.264,11.2213]
[1770846256742,43.43047366,80.306,80.264,11.2213]
[1770846256941,32.21497366,80.301,80.257,11.2223]
[1770846257342,32.21497366,80.301,80.252,33.82302807]
[1770846257543,32.21497366,80.301,80.267,11.2208]
[1770846257842,32.21497366,80.301,80.252,33.82302807]
[1770846258748,32.21497366,80.301,80.265,11.2211]
[1770846259647,32.21497366,80.301,80.258,45.04512807]
[1770846260650,32.21497366,80.301,80.262,32.79258167]
[1770846261755,11.5959228,80.3,80.262,32.79258167]
[1770846262147,43.43127366,80.301,80.262,32.79258167]
[1770846262349,11.5959228,80.3,80.262,32.79258167]
[1770846262854,15.56976823,80.3,80.262,32.79258167]
[1770846263055,11.2166,80.299,80.262,32.79258167]
[1770846263354,15.56976823,80.3,80.264,32.79258167]
[1770846263653,3.97384543,80.3,80.264,32.79258167]
[1770846263847,9.64794962,80.299,80.264,32.79258167]
[1770846264050,9.64794962,80.298,80.264,32.79258167]
[1770846264244,9.64794962,80.297,80.264,32.79258167]
[1770846264447,9.64794962,80.296,80.264,32.79258167]
[1770846264647,9.64794962,80.295,80.271,11.2203]
[1770846264847,9.64794962,80.294,80.271,11.2203]
[1770846265154,9.64794962,80.293,80.271,11.2203]
[1770846265354,4.962e-05,80.292,80.271,11.2203]
[1770846265653,11.5959228,80.308,80.275,32.79258167]
[1770846266243,15.56976823,80.31,80.275,32.79258167]
[1770846266447,15.56976823,80.31,80.275,44.01228167]
[1770846266653,15.56976823,80.31,80.276,32.79258167]
[1770846267256,15.56976823,80.31,80.278,46.57805224]
[1770846267456,15.56976823,80.31,80.279,35.35865224]
[1770846268852,15.56976823,80.31,80.282,11.2187]
[1770846269048,3.97384543,80.33,80.281,35.35865224]
[1770846269254,3.97384543,80.32,80.282,35.35865224]
[1770846270155,3.97384543,80.32,80.258,22.4443]
[1770846270156,3.97384543,80.3,80.28,11.219]
[1770846270546,3.97384543,80.31,80.28,11.219]
[1770846271258,39.16338704,80.29,80.241,35.35865224]
[1770846271456,11.2154,80.307,80.251,35.35865224]
[1770846272046,11.2154,80.307,80.261,11.2217]
[1770846272253,11.2162,80.301,80.262,35.35865224]
[1770846272456,3.97384543,80.3,80.262,35.35865224]
[1770846272954,3.97384543,80.3,80.242,267.78]
[1770846272955,3.97384543,80.3,80.263,46.58005224]
[1770846273154,3.97384543,80.3,80.264,35.35865224]
[1770846273551,3.97384543,80.3,80.265,11.2212]
[1770846274756,35.18954161,80.318,80.264,35.35865224]
[1770846275657,3.97384543,80.32,80.282,35.35865224]
[1770846276055,3.97384543,80.33,80.282,35.35865224]
[1770846276657,15.18604543,80.33,80.289,11.2178]
[1770846276857,3.97384543,80.32,80.282,35.35865224]
[1770846277252,9.52672266,80.319,80.282,35.35865224]
[1770846277557,9.52672266,80.318,80.288,11.2179]
[1770846277861,9.52672266,80.317,80.289,257.22]
[1770846278061,9.52672266,80.316,80.289,292.57865224]
[1770846278262,9.52672266,80.315,80.289,292.57865224]
[1770846278465,9.52672266,80.314,80.289,292.57865224]
[1770846278763,9.52672266,80.313,80.289,292.57865224]
[1770846278955,9.52672266,80.312,80.289,292.57865224]
[1770846279155,9.52672266,80.311,80.276,11.2196]
[1770846279356,9.52672266,80.31,80.277,304.43865224]
[1770846279555,9.52672266,80.309,80.278,35.35865224]
[1770846279758,3.97384543,80.32,80.285,11.2184]
[1770846279759,9.52672266,80.308,80.285,11.2184]
[1770846280061,2.266e-05,80.307,80.285,35.35865224]
[1770846280356,3.97384543,80.34,80.285,35.35865224]
[1770846281356,11.2111,80.338,80.292,35.35865224]
[1770846284460,3.97384543,80.33,80.292,35.35865224]
[1770846285262,11.2111,80.338,80.292,35.35865224]
[1770846287263,3.97384543,80.35,80.301,35.35865224]
[1770846288265,35.18954161,80.355,80.301,35.35865224]
[1770846288866,35.18954161,80.355,80.31,35.35865224]
[1770846289869,11.2084,80.357,80.313,35.35865224]
[1770846290472,34.14679908,80.365,80.317,11.214]
[1770846290680,34.14679908,80.365,80.317,44.16405513]
[1770846290978,34.14679908,80.365,80.318,32.95005513]
[1770846291175,34.14679908,80.362,80.318,32.95005513]
[1770846292074,9.44943719,80.361,80.318,32.95005513]
[1770846292377,9.44943719,80.36,80.318,32.95005513]
[1770846292579,9.44943719,80.359,80.318,32.95005513]
[1770846292778,9.44943719,80.358,80.318,32.95005513]
[1770846292980,9.44943719,80.357,80.318,32.95005513]
[1770846293182,9.44943719,80.356,80.318,32.95005513]
[1770846293376,9.44943719,80.355,80.319,11.2136]
[1770846293577,11.2066,80.371,80.32,32.95005513]
[1770846293776,9.44466263,80.37,80.32,32.95005513]
[1770846293978,9.44466263,80.369,80.32,32.95005513]
[1770846294176,9.44466263,80.368,80.32,32.95005513]
[1770846294383,9.44466263,80.367,80.32,32.95005513]
[1770846294578,9.44466263,80.366,80.329,32.95005513]
[1770846294881,34.14679908,80.387,80.331,32.95005513]
[1770846295184,9.44225258,80.386,80.331,32.95005513]
[1770846295384,9.44225258,80.385,80.333,32.95005513]
[1770846295584,9.44225258,80.384,80.333,32.95005513]
[1770846295784,9.44225258,80.383,80.339,32.95005513]
[1770846295981,9.44225258,80.382,80.339,32.95005513]
[1770846296186,34.14679908,80.38,80.319,32.95005513]
[1770846296484,34.14679908,80.364,80.321,32.95005513]
[1770846296673,34.14679908,80.362,80.321,32.95005513]
[1770846296872,34.14679908,80.362,80.31,99.36]
[1770846296873,34.14679908,80.36,80.311,32.95005513]
[1770846297084,34.14679908,80.358,80.297,32.95005513]
[1770846297286,34.14679908,80.356,80.297,32.95005513]
[1770846297480,34.14679908,80.354,80.297,32.95005513]
[1770846297686,10.62917726,80.36,80.297,32.95005513]
[1770846297687,34.14679908,80.349,80.297,32.95005513]
[1770846297883,34.14679908,80.347,80.297,32.95005513]
[1770846298179,34.14679908,80.345,80.297,32.95005513]
[1770846298380,9.44225258,80.344,80.297,32.95005513]
[1770846298588,9.44225258,80.343,80.297,32.95005513]
[1770846298803,9.44225258,80.342,80.298,44.16665513]
[1770846299082,34.14679908,80.34,80.283,254.1]
[1770846299285,34.14679908,80.338,80.284,32.95005513]
[1770846299587,9.44225258,80.337,80.284,32.95005513]
[1770846299778,9.44225258,80.336,80.284,32.95005513]
[1770846299982,9.44225258,80.335,80.284,32.95005513]
[1770846300179,11.2042,80.387,80.331,32.95005513]
[1770846300484,34.14679908,80.385,80.331,32.95005513]
[1770846300683,11.2054,80.379,80.331,32.95005513]
[1770846300988,34.14679908,80.377,80.316,32.95005513]
[1770846301286,34.14679908,80.375,80.317,32.95005513]
[1770846301483,34.14679908,80.373,80.317,32.95005513]
[1770846301685,9.40301201,80.372,80.317,32.95005513]
[1770846301879,9.40301201,80.371,80.317,32.95005513]
[1770846302075,10.62917726,80.39,80.317,32.95005513]
[1770846302076,34.14679908,80.366,80.317,32.95005513]
[1770846302277,9.40301201,80.365,80.317,32.95005513]
[1770846302491,9.40301201,80.364,80.317,32.95005513]
[1770846302685,9.40301201,80.363,80.317,32.95005513]
[1770846302889,9.40301201,80.362,80.317,32.95005513]
[1770846303186,11.2081,80.36,80.317,32.95005513]
[1770846303376,9.40301201,80.359,80.317,32.95005513]
[1770846303583,34.14679908,80.366,80.317,32.95005513]
[1770846303783,9.39939912,80.365,80.317,32.95005513]
[1770846303991,9.39939912,80.364,80.317,32.95005513]
[1770846304193,9.39939912,80.363,80.317,32.95005513]
[1770846304381,9.39939912,80.362,80.317,32.95005513]
[1770846304581,9.39939912,80.361,80.317,32.95005513]
[1770846304889,9.39939912,80.36,80.317,32.95005513]
[1770846305080,34.14679908,80.366,80.319,32.95005513]
[1770846305682,9.39750682,80.365,80.319,32.95005513]
[1770846305882,9.39750682,80.364,80.319,32.95005513]
[1770846306083,34.14679908,80.366,80.319,32.95005513]
[1770846306283,11.2075,80.364,80.32,11.2135]
[1770846306480,11.2075,80.364,80.258,37.31]
[1770846306481,34.14679908,80.359,80.291,32.95005513]
[1770846306686,34.14679908,80.357,80.296,32.95005513]
[1770846306885,43.5443059,80.356,80.296,32.95005513]
[1770846307079,9.39750682,80.355,80.296,32.95005513]
[1770846307284,9.39750682,80.354,80.296,32.95005513]
[1770846307480,9.39750682,80.353,80.312,32.95005513]
[1770846307687,10.62629164,80.38,80.312,32.95005513]
[1770846307890,43.54414686,80.379,80.312,32.95005513]
[1770846308088,34.14679908,80.377,80.312,32.95005513]
[1770846308392,34.14679908,80.375,80.312,32.95005513]
[1770846308591,34.14679908,80.373,80.312,32.95005513]
[1770846308790,34.14679908,80.371,80.326,44.16265513]
[1770846309097,9.39734778,80.37,80.326,44.16265513]
[1770846309393,9.39734778,80.369,80.326,44.16265513]
[1770846309581,11.205,80.381,80.331,32.95005513]
[1770846309786,9.39698893,80.38,80.331,32.95005513]
[1770846309986,9.39698893,80.379,80.331,32.95005513]
[1770846310182,9.39698893,80.378,80.331,32.95005513]
[1770846310387,9.39698893,80.377,80.331,32.95005513]
[1770846310584,9.39698893,80.376,80.331,32.95005513]
[1770846310789,9.39698893,80.375,80.335,11.2114]
[1770846310986,9.39698893,80.374,80.336,32.95005513]
[1770846311186,3.96581833,80.38,80.336,32.95005513]
[1770846311493,3.96581833,80.37,80.336,32.95005513]
[1770846314092,3.96581833,80.36,80.319,11.2135]
[1770846314296,34.14679908,80.329,80.284,32.95005513]
[1770846314486,3.96581833,80.32,80.271,32.95005513]
[1770846315797,3.96581833,80.32,80.281,32.95005513]
[1770846316392,9.40640594,80.319,80.281,32.95005513]
[1770846316594,3.96581833,80.32,80.281,32.95005513]
[1770846316799,9.40640533,80.319,80.281,32.95005513]
[1770846317102,11.2138,80.319,80.281,32.95005513]
[1770846317291,9.40895671,80.318,80.281,32.95005513]
[1770846317491,11.2138,80.319,80.281,32.95005513]
[1770846317691,9.40895671,80.318,80.281,32.95005513]
[1770846317895,11.2138,80.319,80.281,32.95005513]
[1770846318097,9.4089561,80.318,80.281,32.95005513]
[1770846318289,9.41163579,80.317,80.281,32.95005513]
[1770846318488,11.2138,80.319,80.281,32.95005513]
[1770846318692,9.41163579,80.318,80.281,32.95005513]
[1770846318894,9.41163579,80.317,80.281,32.95005513]
[1770846319095,11.2147,80.312,80.281,32.95005513]
[1770846319602,34.14679908,80.306,80.25,32.95005513]
[1770846319797,34.14679908,80.304,80.25,32.95005513]
[1770846320101,34.14679908,80.302,80.25,32.95005513]
[1770846320300,9.41482113,80.301,80.25,32.95005513]
[1770846320488,20.63122113,80.3,80.251,44.17315513]
[1770846320693,34.14679908,80.302,80.251,44.17315513]
[1770846320694,9.41482113,80.299,80.251,44.17315513]
[1770846320893,9.41482113,80.298,80.252,34.16549592]
[1770846321095,9.41482113,80.297,80.252,34.16549592]
[1770846321296,34.14679908,80.302,80.252,34.16549592]
[1770846321496,9.41249755,80.301,80.252,34.16549592]
[1770846321695,11.2167,80.298,80.253,11.2229]
[1770846321899,9.41249755,80.297,80.253,11.2229]
[1770846322196,11.2167,80.298,80.253,11.2229]
[1770846322404,33.20601265,80.295,80.252,34.16549592]
[1770846322598,42.61612859,80.294,80.252,34.16549592]
[1770846322794,10.63801147,80.3,80.244,502.1866966]
[1770846322795,33.20601265,80.292,80.244,502.1866966]
[1770846322991,9.41011594,80.291,80.244,536.35219252]
[1770846323195,9.41011594,80.29,80.244,536.35219252]
[1770846323399,9.40723725,80.289,80.244,536.35219252]
[1770846323593,33.20601265,80.292,80.247,11.2237]
[1770846323801,9.40723725,80.291,80.247,45.38919592]
[1770846324000,9.40723725,80.29,80.247,45.38919592]
[1770846324202,33.20601265,80.292,80.247,45.38919592]
[1770846324203,9.40723725,80.289,80.247,45.38919592]
[1770846324404,44.42361265,80.292,80.247,45.38919592]
[1770846324600,9.40351109,80.291,80.247,45.38919592]
[1770846324805,44.42361265,80.292,80.247,45.38919592]
[1770846325102,42.60952374,80.291,80.247,45.38919592]
[1770846325301,33.20601265,80.334,80.251,34.16549592]
[1770846325508,33.20601265,80.329,80.251,34.16549592]
[1770846325701,33.20601265,80.327,80.251,34.16549592]
[1770846325901,33.20601265,80.309,80.25,34.16549592]
[1770846326201,33.20601265,80.307,80.25,34.16549592]
[1770846326405,33.20601265,80.274,80.223,11.227]
[1770846326606,33.20601265,80.274,80.222,34.16549592]
[1770846327007,33.20601265,80.268,80.218,11.2278]
[1770846327199,33.20601265,80.266,80.218,11.2278]
[1770846327400,33.2632724,80.283,80.235,11.2253]
[1770846327602,9.3792289,80.282,80.235,11.2253]
[1770846327802,33.2632724,80.283,80.231,34.13033933]
[1770846328099,9.37923285,80.282,80.231,34.13033933]
[1770846328300,33.2632724,80.283,80.242,11.2244]
[1770846328502,33.2632724,80.31,80.243,34.13033933]
[1770846328806,33.2632724,80.31,80.245,34.13033933]
[1770846329008,33.2632724,80.308,80.258,11.2221]
[1770846329808,33.2632724,80.306,80.258,11.2221]
[1770846330705,33.2632724,80.304,80.258,11.2221]
[1770846331808,33.2632724,80.302,80.248,34.13033933]
[1770846332110,33.2632724,80.317,80.248,34.13033933]
[1770846332305,11.215,80.31,80.264,11.2213]
[1770846332504,44.4782724,80.31,80.264,11.2213]
[1770846332697,33.2632724,80.309,80.264,11.2213]
[1770846333108,11.2153,80.308,80.264,11.2213]
[1770846333307,33.2632724,80.307,80.256,11.2223]
[1770846333810,33.2632724,80.307,80.256,45.35263933]
[1770846334224,33.2632724,80.292,80.211,34.13033933]
[1770846334510,33.2632724,80.279,80.211,34.13033933]
[1770846334707,33.2632724,80.279,80.237,11.2251]
[1770846334921,11.2182,80.287,80.238,34.13033933]
[1770846335808,11.2182,80.287,80.239,45.35513933]
[1770846336111,11.2182,80.287,80.24,34.13033933]
[1770846336717,9.35700663,80.299,80.25,34.13033933]
[1770846336902,42.61886987,80.307,80.25,34.13033933]
[1770846337104,9.35559747,80.306,80.25,34.13033933]
[1770846337301,9.35559747,80.305,80.25,34.13033933]
[1770846337611,11.2169,80.297,80.253,45.35313933]
[1770846338005,11.2169,80.297,80.253,34.13033933]
[1770846338405,11.2173,80.294,80.253,34.13033933]
[1770846339400,11.2176,80.292,80.247,34.13033933]
[1770846340013,33.2632724,80.293,80.25,34.13033933]
[1770846341512,11.2177,80.291,80.25,34.13033933]
[1770846342212,11.2166,80.298,80.25,34.13033933]
[1770846343820,11.2166,80.298,80.252,11.223]
[1770846344121,44.4802724,80.296,80.252,11.223]
[1770846344618,44.4802724,80.296,80.253,34.13033933]
[1770846344814,11.2156,80.306,80.26,34.13033933]
[1770846345018,33.2632724,80.31,80.26,34.13033933]
[1770846345211,33.2632724,80.308,80.26,34.13033933]
[1770846345414,42.61953397,80.307,80.26,34.13033933]
[1770846345710,11.2158,80.304,80.262,11.2216]
[1770846346920,11.2158,80.304,80.263,34.13033933]
[1770846348213,33.2632724,80.315,80.265,34.13033933]
[1770846348413,33.2632724,80.313,80.265,34.13033933]
[1770846348606,42.62621965,80.312,80.265,34.13033933]
[1770846348811,42.62621965,80.311,80.265,34.13033933]
[1770846349010,9.36294725,80.31,80.265,34.13033933]
[1770846349214,9.36294725,80.309,80.265,34.13033933]
[1770846349416,11.2158,80.304,80.265,34.13033933]
[1770846349925,9.36616765,80.303,80.265,34.13033933]
[1770846350213,33.2632724,80.304,80.265,45.35153933]
[1770846350415,11.2153,80.308,80.266,34.13033933]
[1770846350613,34.42548682,80.305,80.266,34.13033933]
[1770846351013,9.37087888,80.304,80.266,34.13033933]
[1770846351214,9.37087888,80.303,80.266,34.13033933]
[1770846351413,9.37087888,80.302,80.266,34.13033933]
[1770846351615,34.42548682,80.305,80.266,34.13033933]
[1770846351813,20.59013958,80.304,80.266,34.13033933]
[1770846352120,9.37433958,80.303,80.266,34.13033933]
[1770846352320,9.37433958,80.302,80.266,34.13033933]
[1770846352512,9.37433958,80.301,80.266,34.13033933]
[1770846352708,11.2158,80.304,80.266,34.13033933]
[1770846352913,9.37677299,80.303,80.266,34.13033933]
[1770846353121,11.2158,80.304,80.266,34.13033933]
[1770846353318,9.37641949,80.303,80.266,34.13033933]
[1770846353522,9.37641949,80.302,80.266,34.13033933]
[1770846353723,11.2158,80.304,80.266,34.13033933]
[1770846353913,9.38137735,80.303,80.266,34.13033933]
[1770846354113,9.38137735,80.302,80.266,34.13033933]
[1770846354316,34.42548682,80.33,80.268,32.70578852]
[1770846355524,11.2128,80.326,80.282,32.70578852]
[1770846356116,34.42548682,80.321,80.274,11.2199]
[1770846356320,34.42548682,80.321,80.275,32.70578852]
[1770846357716,34.42548682,80.321,80.278,11.2193]
[1770846358426,34.42548682,80.321,80.278,43.92508852]
[1770846358625,34.42548682,80.321,80.279,32.70578852]
[1770846359018,34.42548682,80.321,80.28,11.2191]
[1770846359019,3.97164033,80.32,80.28,11.2191]
[1770846360623,3.97164033,80.32,80.281,32.70578852]
[1770846361726,38.39712715,80.32,80.281,32.70578852]
[1770846361919,11.2136,80.32,80.28,43.92488852]
[1770846362115,3.97164033,80.33,80.288,43.92378852]
[1770846362422,11.54275758,80.344,80.3,3.97164033]
[1770846362624,11.54275758,80.376,80.331,32.70578852]
[1770846362929,34.42548682,80.369,80.331,32.70578852]
[1770846363622,38.39712715,80.36,80.317,32.70578852]
[1770846363817,3.97164033,80.35,80.301,32.70578852]
[1770846364024,34.42548682,80.36,80.301,32.70578852]
[1770846364225,3.97164033,80.35,80.301,32.70578852]
[1770846365125,3.97164033,80.35,80.306,11.2155]
[1770846365126,3.96825549,80.35,80.306,11.2155]
[1770846365327,3.96825549,80.34,80.301,32.70578852]
[1770846365527,3.96825549,80.35,80.301,32.70578852]
[1770846366118,3.96825549,80.34,80.301,32.70578852]
[1770846366325,9.43123421,80.339,80.301,32.70578852]
[1770846366630,3.96825549,80.36,80.301,32.70578852]
[1770846366826,9.43015569,80.359,80.301,32.70578852]
[1770846367030,9.43015569,80.358,80.301,32.70578852]
[1770846367326,9.43015569,80.357,80.301,32.70578852]
[1770846367531,11.2087,80.355,80.309,11.215]
[1770846367829,9.43015569,80.354,80.31,32.70578852]
[1770846368019,11.2093,80.351,80.31,32.70578852]
[1770846368223,9.43015569,80.35,80.31,32.70578852]
[1770846368424,9.43015569,80.349,80.31,32.70578852]
[1770846368729,11.2098,80.347,80.31,32.70578852]
[1770846368931,34.42548682,80.364,80.31,32.70578852]
[1770846368932,9.43015569,80.346,80.31,32.70578852]
[1770846369133,34.42548682,80.344,80.295,32.70578852]
[1770846369327,9.43015569,80.343,80.295,32.70578852]
[1770846369522,9.43015569,80.342,80.295,32.70578852]
[1770846369725,34.42548682,80.339,80.296,32.70578852]
[1770846369932,9.43015569,80.338,80.296,32.70578852]
[1770846370132,9.43015569,80.337,80.296,32.70578852]
[1770846370427,11.2121,80.33,80.285,11.2184]
[1770846370630,43.85564251,80.329,80.285,11.2184]
[1770846370926,43.85564251,80.328,80.285,11.2184]
[1770846371228,34.42548682,80.326,80.241,32.70578852]
[1770846371433,10.62933092,80.33,80.241,32.70578852]
[1770846371434,34.42548682,80.324,80.241,32.70578852]
[1770846371620,34.42548682,80.322,80.241,32.70578852]
[1770846371822,34.42548682,80.322,80.24,10.62933092]
[1770846371823,11.2137,80.319,80.276,11.2196]
[1770846372131,9.43015569,80.318,80.276,11.2196]
[1770846372435,34.42548682,80.309,80.257,32.70578852]
[1770846372628,34.42548682,80.307,80.257,32.70578852]
[1770846372826,34.42548682,80.305,80.242,32.70578852]
[1770846373025,34.42548682,80.303,80.242,32.70578852]
[1770846373223,9.43015569,80.302,80.242,32.70578852]
[1770846373431,9.43015569,80.301,80.271,11.2203]
[1770846373728,11.2148,80.311,80.271,43.92608852]
[1770846373930,9.43161055,80.31,80.272,32.70578852]
[1770846374124,11.54275758,80.326,80.275,32.70578852]
[1770846374125,9.43161055,80.309,80.275,32.70578852]
[1770846374430,34.42548682,80.332,80.275,32.70578852]
[1770846374831,34.42548682,80.332,80.293,11.2173]
[1770846375032,11.2108,80.34,80.293,11.2173]
[1770846375625,11.2108,80.34,80.27,32.70578852]
[1770846375626,34.42548682,80.329,80.27,32.70578852]
[1770846376726,11.213,80.324,80.272,32.70578852]
[1770846377832,11.2141,80.317,80.274,43.92568852]
[1770846378031,11.2141,80.317,80.274,32.70578852]
[1770846378234,34.42548682,80.316,80.252,32.70578852]
[1770846378439,34.42548682,80.316,80.265,11.2212]
[1770846378635,11.2155,80.306,80.252,32.70578852]
[1770846379843,11.2155,80.306,80.258,32.70578852]
[1770846380138,11.2169,80.296,80.258,32.70578852]
[1770846381843,11.216,80.303,80.258,32.70578852]
[1770846382245,34.42548682,80.316,80.258,32.70578852]
[1770846383446,32.82645392,80.313,80.258,32.70578852]
[1770846383851,11.2168,80.297,80.258,32.70578852]
[1770846384847,11.2176,80.291,80.258,32.70578852]
[1770846385436,32.82645392,80.299,80.244,45.32933467]
[1770846385637,32.82645392,80.299,80.244,34.10523467]
[1770846385835,22.4275,80.319,80.244,34.10523467]
[1770846385836,11.54275758,80.308,80.244,34.10523467]
[1770846386048,32.82645392,80.314,80.246,34.10523467]
[1770846386348,11.54275758,80.317,80.246,34.10523467]
[1770846386349,32.82645392,80.312,80.246,34.10523467]
[1770846386650,32.82645392,80.312,80.23,10.62933092]
[1770846386651,32.82645392,80.309,80.253,34.10523467]
[1770846386842,32.82645392,80.307,80.253,34.10523467]
[1770846387043,32.82645392,80.305,80.253,34.10523467]
[1770846387353,11.217,80.296,80.253,34.10523467]
[1770846387651,9.40752956,80.295,80.253,34.10523467]
[1770846387839,9.40752956,80.294,80.253,34.10523467]
[1770846388040,9.40752956,80.293,80.253,34.10523467]
[1770846388250,9.40752956,80.292,80.253,34.10523467]
[1770846388446,9.40752956,80.291,80.254,11.2227]
[1770846388647,9.40752956,80.29,80.254,11.2227]
[1770846388952,3.97445535,80.29,80.254,11.2227]
[1770846391049,3.97445535,80.29,80.255,32.13027123]
[1770846391257,11.217,80.296,80.257,32.13027123]
[1770846391453,15.34693407,80.323,80.257,32.13027123]
[1770846391454,9.41030382,80.295,80.257,32.13027123]
[1770846391753,11.2155,80.306,80.261,32.13027123]
[1770846391955,9.40869353,80.305,80.261,32.13027123]
[1770846392156,9.40869353,80.304,80.261,32.13027123]
[1770846392358,9.40869353,80.303,80.261,32.13027123]
[1770846392555,11.2155,80.306,80.261,32.13027123]
[1770846392756,9.4093106,80.305,80.267,32.13027123]
[1770846392951,9.4093106,80.304,80.267,32.13027123]
[1770846393151,9.4093106,80.303,80.267,32.13027123]
[1770846393352,11.2155,80.306,80.268,11.2208]
[1770846393557,9.40964257,80.305,80.269,32.13027123]
[1770846393758,9.40964257,80.304,80.269,32.13027123]
[1770846393957,9.40964257,80.303,80.269,32.13027123]
[1770846394160,11.2155,80.306,80.269,32.13027123]
[1770846394361,9.41003955,80.305,80.269,32.13027123]
[1770846394549,9.41003955,80.304,80.269,32.13027123]
[1770846394749,9.41003955,80.303,80.269,32.13027123]
[1770846394949,11.2155,80.306,80.269,32.13027123]
[1770846395149,9.41003401,80.305,80.269,32.13027123]
[1770846395353,9.41003401,80.304,80.269,32.13027123]
[1770846395648,9.41003401,80.303,80.269,32.13027123]
[1770846395854,3.97445535,80.3,80.269,32.13027123]
[1770846396156,9.4107568,80.299,80.269,32.13027123]
[1770846396357,11.2158,80.304,80.269,32.13027123]
[1770846396557,9.41174378,80.303,80.266,11.2211]
[1770846396751,9.41174378,80.302,80.266,11.2211]
[1770846396954,3.97445535,80.3,80.266,11.2211]
[1770846397150,9.41174378,80.299,80.266,11.2211]
[1770846397353,3.97445535,80.3,80.266,11.2211]
[1770846397550,9.41220665,80.299,80.259,32.13027123]
[1770846397761,11.2158,80.304,80.259,32.13027123]
[1770846397970,9.41220665,80.303,80.261,32.13027123]
[1770846398266,3.97445535,80.3,80.261,32.13027123]
[1770846398465,9.41220665,80.299,80.261,32.13027123]
[1770846398655,9.41220665,80.298,80.261,32.13027123]
[1770846398856,3.97445535,80.3,80.265,11.2211]
[1770846399056,9.41250925,80.299,80.265,11.2211]
[1770846399352,9.41250925,80.298,80.265,11.2211]
[1770846399558,3.97445535,80.3,80.265,11.2211]
[1770846399757,9.41281456,80.299,80.265,11.2211]
[1770846399956,9.41281456,80.298,80.265,11.2211]
[1770846400159,3.97445535,80.3,80.265,11.2211]
[1770846400360,9.41332022,80.299,80.265,43.35137123]
[1770846400664,9.41332022,80.298,80.265,43.35137123]
[1770846400966,3.97445535,80.28,80.252,32.13027123]
[1770846401462,11.2185,80.285,80.252,32.13027123]
[1770846401965,35.92820809,80.29,80.252,32.13027123]
[1770846402262,9.41261622,80.289,80.252,32.13027123]
[1770846402466,35.92820809,80.29,80.252,32.13027123]
[1770846402653,9.41160592,80.289,80.252,32.13027123]
[1770846402856,11.2193,80.279,80.252,32.13027123]
[1770846406665,3.97445535,80.3,80.252,32.13027123]
[1770846406964,9.40821858,80.299,80.252,32.13027123]
[1770846407158,11.2182,80.287,80.252,32.13027123]
[1770846407562,3.97445535,80.29,80.252,32.13027123]
[1770846408057,11.2181,80.288,80.252,32.13027123]
[1770846409961,3.97445535,80.29,80.252,32.13027123]
[1770846410261,11.219,80.281,80.252,32.13027123]
[1770846412470,9.43183231,80.28,80.252,32.13027123]
[1770846412661,9.43183231,80.279,80.252,32.13027123]
[1770846412864,11.219,80.281,80.252,32.13027123]
[1770846413662,3.97445535,80.26,80.22,32.87179555]
[1770846413865,9.43703708,80.259,80.231,32.87179555]
[1770846414063,3.97445535,80.28,80.231,32.87179555]
[1770846414365,9.4424949,80.279,80.231,32.87179555]
[1770846414568,9.4424949,80.278,80.231,32.87179555]
[1770846414868,11.2197,80.276,80.238,32.87179555]
[1770846415168,9.4424949,80.275,80.238,32.87179555]